bitfinex/quotes_BTCUSD_20251113
["timestamp","ask_amount","ask_price","bid_price","bid_amount"]
[1763032388315,4.656e-05,103120.0,103110.0,0.76731722]
[1763032388517,4.656e-05,103120.0,103110.0,1.21437728]
[1763032388717,4.656e-05,103120.0,103110.0,0.99084725]
[1763032388892,4.656e-05,103120.0,103110.0,0.97084725]
[1763032389095,4.656e-05,103120.0,103110.0,0.99084725]
[1763032389463,4.656e-05,103120.0,103110.0,1.21437728]
[1763032390680,4.656e-05,103120.0,103110.0,0.99084725]
[1763032391873,4.656e-05,103120.0,103110.0,1.21437728]
[1763032400011,4.656e-05,103120.0,103110.0,0.74731722]
[1763032400315,0.02607656,103120.0,103110.0,0.93857725]
[1763032400518,0.02607656,103120.0,103110.0,0.71504722]
[1763032400679,0.11497656,103120.0,103110.0,0.71504722]
[1763032400880,0.11497656,103120.0,103110.0,0.65304722]
[1763032401081,0.97951544,103120.0,103110.0,0.001]
[1763032401296,0.97951544,103120.0,103110.0,0.2369676]
[1763032401297,0.75598541,103120.0,103110.0,0.2369676]
[1763032401503,0.97951544,103120.0,103110.0,0.043]
[1763032401713,0.97951544,103120.0,103110.0,0.2569676]
[1763032401980,0.75598541,103120.0,103110.0,0.2569676]
[1763032403019,0.75598541,103120.0,103110.0,0.063]
[1763032403020,0.97951544,103120.0,103110.0,0.063]
[1763032403225,0.97951544,103120.0,103110.0,0.2569676]
[1763032403420,0.75598541,103120.0,103110.0,0.2569676]
[1763032404079,0.56203662,103120.0,103110.0,0.2569676]
[1763032404387,0.75598541,103120.0,103110.0,0.2569676]
[1763032405954,0.56203662,103120.0,103110.0,0.2369676]
[1763032406189,0.75598541,103120.0,103110.0,0.2569676]
[1763032408810,0.75598541,103120.0,103110.0,0.063]
[1763032409175,0.75598541,103120.0,103110.0,0.2369676]
[1763032409403,0.75598541,103120.0,103110.0,0.2569676]
[1763032409971,0.75598541,103120.0,103110.0,0.2369676]
[1763032410307,0.75598541,103120.0,103110.0,0.063]
[1763032411237,0.97951544,103120.0,103110.0,0.043]
[1763032411773,1.00862174,103120.0,103110.0,0.043]
[1763032411978,1.00862174,103120.0,103110.0,0.063]
[1763032412151,0.33803165,103120.0,103110.0,0.043]
[1763032412314,0.33803165,103120.0,103110.0,0.063]
[1763032412545,1.00862174,103120.0,103110.0,0.063]
[1763032412745,1.00862174,103120.0,103110.0,0.062]
[1763032413165,1.00862174,103120.0,103110.0,0.042]
[1763032413569,0.1939676,103110.0,103100.0,0.23331016]
[1763032413824,0.74737766,103110.0,103100.0,0.27531016]
[1763032414345,0.7764867,103110.0,103100.0,0.27531016]
[1763032414589,0.7764867,103110.0,103100.0,0.27631016]
[1763032414996,0.7764867,103110.0,103100.0,0.2343117]
[1763032415240,0.7764867,103110.0,103100.0,0.2763117]
[1763032415576,0.74737766,103110.0,103100.0,0.2763117]
[1763032416577,0.74737766,103110.0,103100.0,0.043]
[1763032416773,0.74737766,103110.0,103100.0,0.021]
[1763032417228,0.74737766,103110.0,103100.0,0.063]
[1763032417435,0.74737766,103110.0,103100.0,0.25698642]
[1763032417635,0.74737766,103110.0,103100.0,0.063]
[1763032419960,0.3003176,103110.0,103100.0,0.23698642]
[1763032420164,0.55341006,103110.0,103100.0,0.25698642]
[1763032421061,0.74737766,103110.0,103100.0,0.25698642]
[1763032421243,0.55341006,103110.0,103100.0,0.25698642]
[1763032421450,0.10635,103110.0,103100.0,0.25698642]
[1763032421633,0.28291003,103110.0,103100.0,0.30546642]
[1763032422038,0.29610689,103120.0,103100.0,0.57719645]
[1763032422376,0.32568563,103120.0,103110.0,0.2139676]
[1763032422706,0.51963442,103120.0,103110.0,0.2139676]
[1763032422876,0.77734445,103120.0,103110.0,0.2139676]
[1763032424364,0.58339566,103120.0,103110.0,0.2139676]
[1763032424562,0.77734445,103120.0,103110.0,0.2139676]
[1763032427004,0.62838769,103120.0,103110.0,0.2139676]
[1763032427429,0.4344389,103120.0,103110.0,0.2139676]
[1763032427824,0.62838769,103120.0,103110.0,0.2139676]
[1763032428374,0.33028439,103120.0,103110.0,0.2139676]
[1763032428567,0.62838769,103120.0,103110.0,0.2139676]
[1763032430040,0.4344389,103120.0,103110.0,0.2139676]
[1763032431148,0.06025656,103120.0,103110.0,0.2301576]
[1763032431390,4.656e-05,103120.0,103110.0,0.3129976]
[1763032439643,4.656e-05,103120.0,103110.0,0.6111009]
[1763032440136,4.656e-05,103120.0,103110.0,0.64020201]
[1763032440976,4.656e-05,103120.0,103110.0,0.64120201]
[1763032441344,4.656e-05,103120.0,103110.0,0.64020201]
[1763032441804,4.656e-05,103120.0,103110.0,0.64120201]
[1763032442441,4.656e-05,103120.0,103110.0,0.62120201]
[1763032442599,4.656e-05,103120.0,103110.0,0.64120201]
[1763032445252,4.656e-05,103120.0,103110.0,0.34309871]
[1763032447978,4.656e-05,103120.0,103110.0,0.64120201]
[1763032451097,4.656e-05,103120.0,103110.0,0.66462075]
[1763032451293,4.656e-05,103120.0,103110.0,0.68462075]
[1763032451641,4.656e-05,103120.0,103110.0,0.38651745]
[1763032451837,4.656e-05,103120.0,103110.0,0.68462075]
[1763032452251,4.656e-05,103120.0,103110.0,0.38651745]
[1763032452466,4.656e-05,103120.0,103110.0,0.68462075]
[1763032454448,4.656e-05,103120.0,103110.0,0.38651745]
[1763032454654,4.656e-05,103120.0,103110.0,0.68462075]
[1763032455062,0.02199656,103120.0,103110.0,0.27489871]
[1763032455266,0.02199656,103120.0,103110.0,0.29489871]
[1763032455621,0.09822656,103120.0,103110.0,0.26025871]
[1763032456202,0.05238656,103120.0,103110.0,0.26025871]
[1763032458072,0.05238656,103120.0,103110.0,0.28965871]
[1763032459072,0.02199656,103120.0,103110.0,0.33643871]
[1763032460213,0.02199656,103120.0,103110.0,0.24025871]
[1763032460214,0.39632986,103120.0,103110.0,0.24025871]
[1763032460513,0.39632986,103120.0,103110.0,0.2731576]
[1763032461452,0.05238656,103120.0,103110.0,0.2731576]
[1763032463741,0.02199656,103120.0,103110.0,0.3025576]
[1763032467680,0.02199656,103120.0,103110.0,0.3493376]
[1763032467904,0.02199656,103120.0,103110.0,0.37843975]
[1763032469639,4.656e-05,103120.0,103110.0,0.37843975]
[1763032472314,4.656e-05,103120.0,103110.0,0.67654305]
[1763032472494,4.656e-05,103120.0,103110.0,0.37843975]
[1763032472687,4.656e-05,103120.0,103110.0,0.67654305]
[1763032473400,4.656e-05,103120.0,103110.0,0.62976305]
[1763032473758,4.656e-05,103120.0,103110.0,0.67319305]
[1763032478727,4.656e-05,103120.0,103110.0,0.65319305]
[1763032478903,4.656e-05,103120.0,103110.0,0.67319305]
[1763032479143,4.656e-05,103120.0,103110.0,0.37508975]
[1763032482611,4.656e-05,103120.0,103110.0,0.33165975]
[1763032482996,0.02206656,103120.0,103110.0,0.33165975]
[1763032483199,0.02206656,103120.0,103110.0,0.31165975]
[1763032483373,0.02206656,103120.0,103110.0,0.33165975]
[1763032484603,0.02206656,103120.0,103110.0,0.37508975]
[1763032484804,0.02206656,103120.0,103110.0,0.33165975]
[1763032485642,0.09336656,103120.0,103110.0,0.33165975]
[1763032486486,0.58541865,103120.0,103110.0,0.30225975]
[1763032486672,0.58541865,103120.0,103110.0,0.2731576]
[1763032487176,0.58541865,103120.0,103110.0,0.2569276]
[1763032487506,0.58541865,103120.0,103110.0,0.06296]
[1763032487691,0.58541865,103120.0,103110.0,0.2569276]
[1763032487900,0.58541865,103120.0,103110.0,0.06296]
[1763032488258,0.58541865,103120.0,103110.0,0.2569276]
[1763032488531,0.58541865,103120.0,103110.0,0.2149676]
[1763032488761,0.58541865,103120.0,103110.0,0.2569276]
[1763032489037,0.73448825,103120.0,103110.0,0.2569276]
[1763032489571,0.73448825,103120.0,103110.0,0.06296]
[1763032489756,0.73448825,103120.0,103110.0,0.2569276]
[1763032490895,0.73448825,103120.0,103110.0,0.06296]
[1763032493016,0.9580747,103120.0,103110.0,0.04296]
[1763032493256,0.98718236,103120.0,103110.0,0.04296]
[1763032493474,0.98718236,103120.0,103110.0,0.06296]
[1763032493905,0.98718236,103120.0,103110.0,0.06196]
[1763032494343,0.98718236,103120.0,103110.0,0.04196]
[1763032494574,0.76359591,103120.0,103110.0,0.2559276]
[1763032495952,0.76359591,103120.0,103110.0,0.06196]
[1763032498237,0.76359591,103120.0,103110.0,0.02]
[1763032498443,0.1939676,103110.0,103100.0,0.21398634]
[1763032498621,0.51087405,103110.0,103100.0,0.25594634]
[1763032499023,0.51087405,103110.0,103100.0,0.23594634]
[1763032499225,0.51087405,103110.0,103100.0,0.25594634]
[1763032499642,0.51087405,103110.0,103100.0,0.25694634]
[1763032501532,0.7344605,103110.0,103100.0,0.04296]
[1763032501691,0.7344605,103110.0,103100.0,0.06296]
[1763032501899,0.7344605,103110.0,103100.0,0.25694642]
[1763032502211,0.31690645,103110.0,103100.0,0.25694642]
[1763032502832,0.51087405,103110.0,103100.0,0.04296]
[1763032503032,0.51087405,103110.0,103100.0,0.23694642]
[1763032503262,0.7344605,103110.0,103100.0,0.06296]
[1763032503429,0.2872876,103110.0,103100.0,0.25694642]
[1763032503639,0.7344605,103110.0,103100.0,0.25694642]
[1763032503842,0.7344605,103110.0,103100.0,0.021]
[1763032504006,1.05444643,103110.0,103100.0,0.001]
[1763032504223,0.9871576,103110.0,103100.0,0.06296]
[1763032504635,0.9871576,103110.0,103100.0,0.04296]
[1763032505083,0.9871576,103110.0,103100.0,0.06196]
[1763032505316,0.56960355,103110.0,103100.0,0.23594642]
[1763032505523,0.76357115,103110.0,103100.0,0.25594642]
[1763032505957,0.56960355,103110.0,103100.0,0.25594642]
[1763032506166,0.76357115,103110.0,103100.0,0.25594642]
[1763032506451,0.56960355,103110.0,103100.0,0.25594642]
[1763032506645,0.76357115,103110.0,103100.0,0.25594642]
[1763032507055,0.76357115,103110.0,103100.0,0.06196]
[1763032507249,0.76357115,103110.0,103100.0,0.25594642]
[1763032508117,0.76357115,103110.0,103100.0,0.06196]
[1763032508269,0.76357115,103110.0,103100.0,0.23594642]
[1763032508678,0.76357115,103110.0,103100.0,0.25594642]
[1763032509523,0.05113065,103110.0,103100.0,0.45953287]
[1763032509732,0.47848255,103120.0,103110.0,0.1939676]
[1763032509956,0.34161069,103120.0,103110.0,0.2139676]
[1763032510166,0.53555948,103120.0,103110.0,0.2139676]
[1763032510542,0.34161069,103120.0,103110.0,0.2139676]
[1763032510956,0.53555948,103120.0,103110.0,0.2139676]
[1763032511779,0.53755948,103120.0,103110.0,0.2139676]
[1763032512603,0.34361069,103120.0,103110.0,0.2139676]
[1763032513035,0.53755948,103120.0,103110.0,0.2139676]
[1763032513476,0.34361069,103120.0,103110.0,0.2139676]
[1763032514463,0.53755948,103120.0,103110.0,0.2139676]
[1763032514665,0.34361069,103120.0,103110.0,0.2139676]
[1763032515304,0.08114424,103120.0,103110.0,0.45731405]
[1763032515523,0.05203656,103120.0,103110.0,0.2596276]
[1763032515896,0.05103656,103120.0,103110.0,0.2596276]
[1763032516082,0.02306656,103120.0,103110.0,0.2596276]
[1763032516491,0.02306656,103120.0,103110.0,0.52517405]
[1763032517367,0.02306656,103120.0,103110.0,0.3015876]
[1763032517571,0.02206656,103120.0,103110.0,0.3015876]
[1763032518431,0.02206656,103120.0,103110.0,0.2596276]
[1763032519053,0.06094656,103120.0,103110.0,0.2596276]
[1763032520130,0.5064518,103120.0,103110.0,0.02]
[1763032520330,0.5064518,103120.0,103110.0,0.2139676]
[1763032520795,0.73003825,103120.0,103110.0,0.2139676]
[1763032522591,0.5064518,103120.0,103110.0,0.2139676]
[1763032523957,0.08891656,103120.0,103110.0,0.2139676]
[1763032524197,0.5064518,103120.0,103110.0,0.2139676]
[1763032525044,0.28286535,103120.0,103110.0,0.2139676]
[1763032525491,0.5064518,103120.0,103110.0,0.2139676]
[1763032526099,0.5064518,103120.0,103110.0,0.02]
[1763032526619,0.28286535,103120.0,103110.0,0.2139676]
[1763032526831,0.5064518,103120.0,103100.0,0.59987108]
[1763032527030,0.5064518,103120.0,103110.0,0.02]
[1763032527237,0.5064518,103120.0,103110.0,0.2139676]
[1763032527597,0.5064518,103120.0,103110.0,0.02]
[1763032528518,0.5064518,103120.0,103110.0,0.2139676]
[1763032529693,0.73003825,103120.0,103110.0,0.02]
[1763032530557,0.73003825,103120.0,103110.0,0.2139676]
[1763032530765,0.73003825,103120.0,103110.0,0.02]
[1763032531612,0.1939676,103110.0,103100.0,0.21398642]
[1763032531842,0.7250505,103110.0,103100.0,0.25594642]
[1763032532066,0.7250505,103110.0,103100.0,0.06196]
[1763032532273,0.7250505,103110.0,103100.0,0.25594642]
[1763032532721,0.7250505,103110.0,103100.0,0.06196]
[1763032533132,0.94863695,103110.0,103100.0,0.04296]
[1763032533545,0.97774752,103110.0,103100.0,0.06296]
[1763032533976,0.97774752,103110.0,103100.0,0.04296]
[1763032534383,0.97774752,103110.0,103100.0,0.06296]
[1763032534983,0.97774752,103110.0,103100.0,0.04296]
[1763032535602,0.97774752,103110.0,103100.0,0.06296]
[1763032535868,0.75416107,103110.0,103100.0,0.25694642]
[1763032536058,0.7250505,103110.0,103100.0,0.23694642]
[1763032536268,0.7250505,103110.0,103100.0,0.25694642]
[1763032537497,0.7250505,103110.0,103100.0,0.04296]
[1763032537697,0.7250505,103110.0,103100.0,0.06296]
[1763032537895,0.7250505,103110.0,103100.0,0.04296]
[1763032538355,0.7250505,103110.0,103100.0,0.06296]
[1763032540204,0.7250505,103110.0,103100.0,0.04296]
[1763032540421,0.94863695,103110.0,103100.0,0.06296]
[1763032540622,1.04503643,103110.0,103100.0,0.04296]
[1763032540842,1.04503643,103110.0,103100.0,0.06296]
[1763032540973,0.94863695,103110.0,103100.0,0.06296]
[1763032541172,1.00199098,103110.0,103100.0,0.06296]
[1763032541604,1.00199098,103110.0,103100.0,0.04296]
[1763032542004,1.00199098,103110.0,103100.0,0.06196]
[1763032542200,0.33123163,103110.0,103100.0,0.06196]
[1763032542412,0.34347942,103110.0,103100.0,0.06196]
[1763032542590,1.01423877,103110.0,103100.0,0.06196]
[1763032543194,1.01423877,103110.0,103100.0,0.04196]
[1763032543625,1.01423877,103110.0,103100.0,0.06196]
[1763032545170,1.01423877,103110.0,103100.0,0.04196]
[1763032546003,1.01423877,103110.0,103100.0,0.06196]
[1763032546356,1.01423877,103110.0,103100.0,0.04196]
[1763032547211,1.01423877,103110.0,103100.0,0.06196]
[1763032547410,1.01423877,103110.0,103100.0,0.04196]
[1763032547701,1.04335137,103110.0,103100.0,0.04196]
[1763032548111,1.04335137,103110.0,103100.0,0.06196]
[1763032548933,1.04335137,103110.0,103100.0,0.04196]
[1763032548934,0.67083704,103110.0,103100.0,0.04196]
[1763032549608,0.67083704,103110.0,103100.0,0.06196]
[1763032550032,0.67083704,103110.0,103100.0,0.04196]
[1763032550461,0.67083704,103110.0,103100.0,0.06196]
[1763032552449,0.67083704,103110.0,103100.0,0.04196]
[1763032553260,0.67083704,103110.0,103100.0,0.06196]
[1763032553455,0.67083704,103110.0,103100.0,0.04196]
[1763032553680,0.67083704,103110.0,103100.0,0.06196]
[1763032554022,0.67083704,103110.0,103100.0,0.04196]
[1763032554247,0.11144182,103110.0,103100.0,0.26814642]
[1763032554453,0.29316163,103110.0,103100.0,0.29501642]
[1763032554656,0.29316163,103110.0,103100.0,0.24814642]
[1763032554857,0.33123163,103110.0,103100.0,0.26814642]
[1763032555209,0.2778776,103110.0,103100.0,0.26814642]
[1763032555433,0.20372525,103080.0,103060.0,0.05335403]
[1763032555643,0.57150505,103070.0,103060.0,0.09547403]
[1763032556206,0.30238306,103070.0,103060.0,0.09547403]
[1763032556422,0.0792,103070.0,103060.0,0.09547403]
[1763032556632,0.04113,103070.0,103060.0,0.29067548]
[1763032556847,0.23517288,103070.0,103060.0,0.28967548]
[1763032557044,0.23517288,103070.0,103060.0,0.09561377]
[1763032557250,0.27324288,103070.0,103060.0,0.23632145]
[1763032557457,0.27324288,103070.0,103060.0,0.04325974]
[1763032557890,0.27324288,103070.0,103060.0,0.04225974]
[1763032558106,0.5714879,103070.0,103060.0,0.04225974]
[1763032558320,0.5714879,103070.0,103060.0,0.04325974]
[1763032558746,0.66788738,103070.0,103060.0,0.04325974]
[1763032558951,0.5714879,103070.0,103060.0,0.04325974]
[1763032561094,0.5714879,103070.0,103060.0,0.23732145]
[1763032561727,0.5714879,103070.0,103060.0,0.04325974]
[1763032574129,0.01452,103070.0,103060.0,0.06592974]
[1763032574331,0.01452,103080.0,103070.0,0.19404288]
[1763032574555,0.01452,103080.0,103070.0,0.23345288]
[1763032574994,0.8414048,103090.0,103080.0,0.19402405]
[1763032575135,0.96126428,103090.0,103080.0,0.23614405]
[1763032575339,0.76725853,103090.0,103080.0,0.24602405]
[1763032575575,0.73318853,103090.0,103080.0,0.24602405]
[1763032575930,0.39225351,103090.0,103080.0,0.26869405]
[1763032576131,0.39225351,103090.0,103080.0,0.30533405]
[1763032576834,0.2425,103090.0,103080.0,0.30533405]
[1763032577029,0.2435,103090.0,103080.0,0.30533405]
[1763032578078,0.2447876,103110.0,103090.0,0.19398668]
[1763032578079,0.25448598,103110.0,103090.0,0.19398668]
[1763032578271,0.25448598,103110.0,103100.0,0.23610642]
[1763032578272,0.54303262,103110.0,103100.0,0.23610642]
[1763032578501,0.6628921,103110.0,103100.0,0.23610642]
[1763032579424,0.6628921,103110.0,103100.0,0.04212]
[1763032579643,0.6638921,103110.0,103100.0,0.04212]
[1763032579864,0.6648921,103110.0,103100.0,0.04212]
[1763032580308,0.6648921,103110.0,103100.0,0.23610642]
[1763032580710,0.56849262,103110.0,103100.0,0.04212]
[1763032581075,0.86673764,103110.0,103100.0,0.04212]
[1763032581868,0.19400523,103090.0,103080.0,0.19402405]
[1763032582089,0.53246025,103090.0,103080.0,0.23628379]
[1763032582300,0.56653025,103090.0,103080.0,0.00013974]
[1763032582507,0.86477527,103090.0,103080.0,0.00013974]
[1763032582710,0.56653025,103090.0,103080.0,0.04225974]
[1763032583618,0.56653025,103090.0,103080.0,0.00013974]
[1763032583814,0.56653025,103090.0,103080.0,0.04225974]
[1763032585919,0.56653025,103090.0,103080.0,0.06225974]
[1763032586069,0.56653025,103090.0,103080.0,0.23628379]
[1763032586271,0.37252502,103090.0,103080.0,0.23628379]
[1763032586471,0.56653025,103090.0,103080.0,0.25628379]
[1763032587732,0.37252502,103090.0,103080.0,0.25628379]
[1763032587934,0.56653025,103090.0,103080.0,0.25628379]
[1763032588341,0.56653025,103090.0,103080.0,0.04225974]
[1763032588544,0.56653025,103090.0,103080.0,0.23628379]
[1763032588758,0.56653025,103090.0,103080.0,0.06225974]
[1763032589621,0.56653025,103090.0,103080.0,0.25628379]
[1763032591587,0.07428,103090.0,103080.0,0.25628379]
[1763032591793,0.56653025,103090.0,103080.0,0.25628379]
[1763032593746,0.56653025,103090.0,103080.0,0.06225974]
[1763032594857,0.56653025,103090.0,103080.0,0.23628379]
[1763032595060,0.56653025,103090.0,103080.0,0.25628379]
[1763032595662,0.56653025,103090.0,103080.0,0.23628379]
[1763032596010,0.56653025,103090.0,103080.0,0.25628379]
[1763032596631,0.37252502,103090.0,103080.0,0.25628379]
[1763032597371,0.56653025,103090.0,103080.0,0.25628379]
[1763032598236,0.56653025,103090.0,103080.0,0.23628379]
[1763032598417,0.56653025,103090.0,103080.0,0.27864379]
[1763032598418,0.01675,103090.0,103080.0,0.27864379]
[1763032598863,0.31499502,103090.0,103080.0,0.27864379]
[1763032599299,0.01675,103090.0,103080.0,0.27864379]
[1763032599706,0.26623523,103090.0,103080.0,0.27864379]
[1763032599909,0.26623523,103090.0,103080.0,0.25628379]
[1763032600342,0.56448025,103090.0,103080.0,0.04225974]
[1763032600723,0.56448025,103090.0,103080.0,0.06225974]
[1763032601716,0.56448025,103090.0,103080.0,0.23628379]
[1763032601935,0.56448025,103090.0,103080.0,0.25628379]
[1763032605201,0.37047502,103090.0,103080.0,0.25628379]
[1763032605404,0.33797502,103090.0,103080.0,0.27864379]
[1763032605572,0.31499502,103090.0,103080.0,0.31123379]
[1763032605777,0.29175,103100.0,103090.0,0.21400523]
[1763032606015,0.75148144,103100.0,103090.0,0.22197523]
[1763032606411,0.58999502,103100.0,103090.0,0.22197523]
[1763032606672,0.78398144,103100.0,103090.0,0.22197523]
[1763032606882,0.80696144,103100.0,103090.0,0.22197523]
[1763032607085,0.80796144,103100.0,103090.0,0.22197523]
[1763032607266,0.61497502,103100.0,103090.0,0.22197523]
[1763032607460,0.61397502,103100.0,103090.0,0.22197523]
[1763032608193,0.61297502,103100.0,103090.0,0.22197523]
[1763032608635,0.2425,103100.0,103090.0,0.57517025]
[1763032608781,0.2425,103100.0,103090.0,0.27692523]
[1763032608983,0.2425,103100.0,103090.0,0.57517025]
[1763032609187,0.2425,103100.0,103090.0,0.27692523]
[1763032611271,0.2425,103100.0,103090.0,0.50054189]
[1763032611480,0.46398332,103120.0,103110.0,0.1939676]
[1763032611621,0.46398332,103120.0,103110.0,0.2693576]
[1763032613333,0.49848332,103120.0,103110.0,0.2693576]
[1763032613544,0.52146332,103120.0,103110.0,0.2693576]
[1763032614167,0.71541211,103120.0,103110.0,0.2693576]
[1763032614375,0.52146332,103120.0,103110.0,0.2493576]
[1763032614577,0.71541211,103120.0,103110.0,0.2693576]
[1763032615013,0.26817879,103120.0,103110.0,0.2693576]
[1763032615214,0.71541211,103120.0,103110.0,0.2693576]
[1763032615458,0.07423,103120.0,103110.0,0.2693576]
[1763032615864,0.52146332,103120.0,103110.0,0.2693576]
[1763032616891,0.44923332,103120.0,103110.0,0.2917176]
[1763032617101,0.002,103120.0,103110.0,0.3222876]
[1763032617316,0.002,103120.0,103110.0,0.54590426]
[1763032617731,0.002,103120.0,103110.0,0.3222876]
[1763032618471,0.001,103120.0,103110.0,0.54590426]
[1763032619098,0.2410706,103130.0,103120.0,0.19394879]
[1763032619359,0.46468726,103130.0,103120.0,0.23630879]
[1763032620552,0.01745394,103130.0,103120.0,0.23630879]
[1763032620755,0.2410706,103130.0,103120.0,0.23630879]
[1763032621042,0.46468726,103130.0,103120.0,0.23630879]
[1763032621213,0.2410706,103130.0,103120.0,0.23630879]
[1763032621444,0.46468726,103130.0,103120.0,0.23630879]
[1763032621877,0.00024394,103130.0,103120.0,0.26687879]
[1763032622005,0.00024394,103130.0,103120.0,0.49049545]
[1763032622213,0.00024394,103130.0,103120.0,0.26687879]
[1763032623013,0.00024394,103130.0,103120.0,0.24687879]
[1763032623223,0.00024394,103130.0,103120.0,0.26595879]
[1763032624273,0.00024394,103130.0,103120.0,0.48957545]
[1763032624956,0.00024394,103130.0,103120.0,0.26595879]
[1763032627027,0.00024394,103130.0,103120.0,0.48957545]
[1763032628121,0.00024394,103130.0,103120.0,0.26595879]
[1763032629960,0.00024394,103130.0,103120.0,0.48957545]
[1763032630986,0.00024394,103130.0,103120.0,0.26595879]
[1763032631207,0.00024394,103130.0,103120.0,0.48957545]
[1763032633031,0.00024394,103130.0,103120.0,0.49057545]
[1763032633449,0.00024394,103130.0,103120.0,0.85699419]
[1763032633655,0.00024394,103130.0,103120.0,0.83799419]
[1763032633864,0.00024394,103130.0,103120.0,0.63437753]
[1763032634081,0.00024394,103130.0,103120.0,0.67637753]
[1763032634907,0.2238606,103130.0,103120.0,0.59095879]
[1763032635091,0.00024394,103130.0,103120.0,0.63186879]
[1763032635236,0.2238606,103130.0,103120.0,0.63186879]
[1763032636048,0.00024394,103130.0,103120.0,0.63186879]
[1763032636245,0.00024394,103130.0,103120.0,0.85548545]
[1763032636397,0.00024394,103130.0,103120.0,0.63186879]
[1763032636602,0.2238606,103130.0,103120.0,0.63186879]
[1763032636806,0.2238606,103130.0,103120.0,0.61186879]
[1763032637017,0.2238606,103130.0,103120.0,0.63186879]
[1763032637018,0.00024394,103130.0,103120.0,0.63186879]
[1763032640695,0.00024394,103130.0,103120.0,0.85548545]
[1763032642213,0.00024394,103130.0,103120.0,0.63186879]
[1763032642622,0.00024394,103130.0,103120.0,0.85548545]
[1763032642834,0.00024394,103130.0,103120.0,0.63186879]
[1763032643048,0.00024394,103130.0,103120.0,0.85548545]
[1763032643252,0.00024394,103130.0,103120.0,0.53802879]
[1763032643253,0.51624726,103130.0,103120.0,0.53802879]
[1763032643458,0.93379391,103130.0,103120.0,0.25706879]
[1763032643852,0.93379391,103130.0,103120.0,0.04404]
[1763032644059,0.93379391,103130.0,103120.0,0.06404]
[1763032644257,0.93379391,103130.0,103120.0,0.25598879]
[1763032645223,0.93379391,103130.0,103120.0,0.06204]
[1763032645431,0.19394879,103120.0,103110.0,0.2272776]
[1763032645636,0.51600332,103120.0,103110.0,0.2641676]
[1763032647064,0.26080666,103120.0,103110.0,0.2641676]
[1763032647279,0.29238666,103120.0,103110.0,0.2641676]
[1763032647612,0.29238666,103120.0,103110.0,0.2661676]
[1763032647730,0.29238666,103120.0,103110.0,0.2461676]
[1763032647935,0.51600332,103120.0,103110.0,0.2661676]
[1763032648648,0.06877,103120.0,103110.0,0.2661676]
[1763032648846,0.29238666,103120.0,103110.0,0.2661676]
[1763032652218,0.06877,103120.0,103110.0,0.2661676]
[1763032652433,0.29238666,103120.0,103110.0,0.2661676]
[1763032654647,0.51600332,103120.0,103110.0,0.2661676]
[1763032655767,0.70995211,103120.0,103110.0,0.2661676]
[1763032655988,0.51600332,103120.0,103110.0,0.2661676]
[1763032656188,0.29238666,103120.0,103110.0,0.2661676]
[1763032656647,0.70995211,103120.0,103110.0,0.2380076]
[1763032656817,0.93356877,103120.0,103110.0,0.04404]
[1763032657905,0.93356877,103120.0,103110.0,0.06404]
[1763032658287,0.93356877,103120.0,103110.0,0.04404]
[1763032658490,0.93356877,103120.0,103110.0,0.06404]
[1763032658742,0.70995211,103120.0,103110.0,0.2380076]
[1763032658968,0.70995211,103120.0,103110.0,0.2580076]
[1763032660430,0.70995211,103120.0,103110.0,0.06404]
[1763032662136,0.70995211,103120.0,103110.0,0.04404]
[1763032662486,0.93356877,103120.0,103110.0,0.04404]
[1763032662688,0.93356877,103120.0,103110.0,0.06404]
[1763032662892,0.93356877,103120.0,103110.0,0.04404]
[1763032663920,0.93356877,103120.0,103110.0,0.2580076]
[1763032664744,0.93356877,103120.0,103110.0,0.06404]
[1763032664955,0.93356877,103120.0,103110.0,0.04404]
[1763032665334,0.93356877,103120.0,103110.0,0.06404]
[1763032666152,0.93356877,103120.0,103110.0,0.04404]
[1763032666373,1.60441875,103120.0,103110.0,0.04404]
[1763032666589,1.60441875,103120.0,103110.0,0.002]
[1763032666590,1.84691875,103120.0,103110.0,0.002]
[1763032666787,2.16991875,103120.0,103110.0,0.044]
[1763032667000,2.19903022,103120.0,103110.0,0.044]
[1763032667203,2.21717096,103120.0,103110.0,0.044]
[1763032667408,2.19903022,103120.0,103110.0,0.002]
[1763032667812,2.19903022,103120.0,103110.0,0.00165138]
[1763032668279,2.20003022,103120.0,103110.0,0.00165138]
[1763032668668,2.21816042,103120.0,103110.0,0.00065138]
[1763032669014,2.21916042,103120.0,103110.0,0.00065138]
[1763032669219,2.21916042,103120.0,103110.0,1.38e-06]
[1763032669439,2.02007916,103120.0,103110.0,1.38e-06]
[1763032669669,2.05002589,103120.0,103110.0,1.38e-06]
[1763032669882,2.05002627,103120.0,103110.0,1.38e-06]
[1763032670357,2.02714271,103120.0,103110.0,1.38e-06]
[1763032670554,2.02914271,103120.0,103110.0,1.38e-06]
[1763032670758,2.03114271,103120.0,103110.0,1.38e-06]
[1763032670965,1.59453768,103120.0,103110.0,1.38e-06]
[1763032671407,1.6545302,103120.0,103110.0,1.38e-06]
[1763032673805,1.64453021,103120.0,103110.0,1.38e-06]
[1763032674018,1.37914916,103120.0,103110.0,1.38e-06]
[1763032674882,1.67751414,103120.0,103110.0,1.38e-06]
[1763032676341,1.68656197,103120.0,103110.0,1.38e-06]
[1763032677304,1.69656196,103120.0,103110.0,1.38e-06]
[1763032678851,1.70656195,103120.0,103110.0,1.38e-06]
[1763032679669,1.80866195,103120.0,103110.0,1.38e-06]
[1763032679874,1.70656195,103120.0,103110.0,1.38e-06]
[1763032680063,1.72740448,103120.0,103110.0,1.38e-06]
[1763032680660,1.75350894,103120.0,103110.0,1.38e-06]
[1763032681302,1.71146894,103120.0,103110.0,1.38e-06]
[1763032681505,1.75350894,103120.0,103110.0,1.38e-06]
[1763032681703,1.75150894,103120.0,103110.0,1.38e-06]
[1763032682369,1.74950894,103120.0,103110.0,1.38e-06]
[1763032682579,1.75250894,103120.0,103110.0,1.38e-06]
[1763032685600,1.71046894,103120.0,103110.0,1.38e-06]
[1763032685935,1.68436448,103120.0,103110.0,1.38e-06]
[1763032686139,1.71640449,103120.0,103110.0,1.38e-06]
[1763032686511,1.72640448,103120.0,103110.0,1.38e-06]
[1763032687952,1.75250894,103120.0,103110.0,1.38e-06]
[1763032688784,1.71046894,103120.0,103110.0,1.38e-06]
[1763032688998,1.75250894,103120.0,103110.0,1.38e-06]
[1763032690804,1.78735005,103120.0,103110.0,1.38e-06]
[1763032692269,1.76124559,103120.0,103110.0,1.38e-06]
[1763032693349,1.81350572,103120.0,103110.0,1.38e-06]
[1763032694373,0.19406171,103060.0,103050.0,0.223784]
[1763032694565,0.56887689,103060.0,103050.0,0.22392374]
[1763032695731,0.56887689,103060.0,103050.0,0.22592374]
[1763032696543,0.0764502,103060.0,103050.0,0.20792374]
[1763032696747,0.0282702,103060.0,103050.0,0.24599374]
[1763032696947,0.0282702,103060.0,103050.0,0.54435872]
[1763032698804,0.0181302,103060.0,103050.0,0.66372149]
[1763032699009,0.28593,103080.0,103070.0,0.19404288]